Cogmind - Beta 10.1 @@@ ROGUE MODE // 2020.09.29 @ 18:15:48 Player: hittemvvvhard Result: Destroyed by as-03414 with Assembled Heavy Rifle Performance ------------- Evolutions (0) 0 Regions Visited (0) 0 Robots Destroyed (0) 0 Value Destroyed (0) 0 Prototype IDs (0) 0 Alien Tech Used (0) 0 Bonus (0) 0 TOTAL SCORE: 0 Bonus ------- None Cogmind --------- Core Integrity 0/250 Matter 235/300 Energy 90/100 System Corruption 0% Temperature Cool (0) Movement Core (100) Ox1 Location -11/Scrapyard Parts ------- > --- POWER (1) -------- (None) > --- PROPULSION (2) --- (None) > --- UTILITY (2) ------ Small Storage Unit > --- WEAPON (2) ------- (None) > --- INVENTORY (6) ---- Light Ion Engine Aluminum Leg Aluminum Leg Wheel Compact Wheel Peak State ------------ > --- POWER ------------ Light Ion Engine > --- PROPULSION ------- Aluminum Leg Aluminum Leg > --- UTILITY ---------- Small Storage Unit > --- WEAPON ----------- Assault Rifle Light Assault Rifle > --- INVENTORY -------- Light Ion Engine Light Treads Light Treads Compact Wheel [Rating: 6] Favorites ----------- Power Light Ion Engine Engine Light Ion Engine Propulsion Light Treads Treads Light Treads Leg Aluminum Leg Utility Small Storage Unit Storage Small Storage Unit Weapon Assault Rifle Energy Gun Small Laser Ballistic Gun Assault Rifle Build | -11 ------- Run | Scr Slots Evolved . | . Power . | . Propulsion . | . Utility . | . Weapon . | . Parts Attached 9 | 9 Power 1 | 1 Engine 1 | 1 Core . | . Reactor . | . Propulsion 4 | 4 Treads 2 | 2 Leg 2 | 2 Wheel . | . Hover . | . Flight . | . Utility 1 | 1 Device . | . Storage 1 | 1 Processor . | . Hackware . | . Protection . | . Artifact . | . Weapon 3 | 3 Energy Gun 1 | 1 Energy Cannon . | . Ballistic Gun 2 | 2 Ballistic Cannon . | . Launcher . | . Special Weapon . | . Impact Weapon . | . Slashing Weapon . | . Piercing Weapon . | . Special Melee Weapon . | . Unidentified Prototypes . | . Parts Lost 6 | 6 Power 1 | 1 Propulsion 2 | 2 Utility . | . Weapon 3 | 3 Highest Loss Streak 6 | 6 Average Slot Usage (%) . | . Naked Turns . | . Heaviest Build 10 | 10 Greatest Support 40 | 40 Greatest Overweight (x) 1 | 1 Average Overweight (x) . | . Largest Inventory Capacity 6 | 6 Average Capacity 5 | 5 Most Carried 6 | 6 Average Carried 5 | 5 Final Capacity 6 | 6 Final Carried 5 | 5 Class Distribution -------------------- None Dominant Class ---------------- None Resources | -11 ----------- Run | Scr Matter Collected 199 | 199 Remotely . | . Salvage Created . | . Parts . | . Haulers Intercepted . | . Recyclers Shooed . | . Parts Field Recycled . | . Retrieved Matter . | . Parts Self-Destructed . | . Prevented . | . Kills | -11 ------- Run | Scr Combat Hostiles Destroyed . | . Classes Destroyed . | . Best Kill Streak . | . Combat Bots Only . | . Max Kills in Single Turn . | . Gunslinging . | . Exploded . | . Melee . | . Uniques/NPCs Destroyed . | . Combat | -11 -------- Run | Scr Damage Taken 846 | 846 Core 258 | 258 Absorbed by Shields . | . Core Remaining (%) . | . Volleys Fired 2 | 2 Largest 2 | 2 Hottest 40 | 40 Shots Fired 3 | 3 Gun 3 | 3 Cannon . | . Launcher . | . Special . | . Kinetic 2 | 2 Thermal 1 | 1 Explosive . | . Electromagnetic . | . Robot Hit Streak 1 | 1 Robot Miss Streak 2 | 2 Penetration Max . | . Secondary Targets . | . Shots Hit Robots 1 | 1 Core Hits . | . Critical Hits . | . Critical Kills . | . Critical Parts Destroyed . | . Melee Attacks . | . Impact . | . Slashing . | . Piercing . | . Sneak Attacks . | . Combat Hostiles . | . Follow-up Attacks . | . Damage Inflicted 15 | 15 Guns 15 | 15 Cannons . | . Explosions . | . Melee . | . Ramming . | . Kinetic 15 | 15 Thermal . | . Explosive . | . Electromagnetic . | . Impact . | . Slashing . | . Piercing . | . Highest Corruption . | . Average Corruption . | . Corruption Purged . | . Overload Shots . | . Overflow Damage . | . Projectiles . | . Explosions . | . Melee . | . Knockbacks . | . Impact . | . Kinetic . | . Secondary . | . Self-Inflicted Damage . | . Shots . | . Rammed . | . Targets Rammed . | . Kicked . | . Crushed . | . Highest Temperature 20 | 20 Average Temperature 5 | 5 Received Heat Transfer 100 | 100 Siege Activations . | . Robots Corrupted . | . Combat Hostiles . | . Parts Fried . | . Impact Corruptions . | . Robots Melted . | . Combat Hostiles . | . Parts Melted . | . Heat Transferred . | . Parts Sabotaged . | . Parts Stolen . | . Parts Stripped . | . Power Chain Reactions . | . Missiles Intercepted . | . Alert | -11 ------- Run | Scr Peak Influence . | . Initial . | . Average . | . Maximum Alert Level . | . Low Security (%) 100 | 100 Level 1 . | . Level 2 . | . Level 3 . | . Level 4 . | . Level 5 . | . High Security . | . Max Security . | . Squads Dispatched . | . Investigation . | . Extermination . | . Reinforcement . | . Assault . | . Garrison . | . Intercept . | . Construction Impeded . | . Haulers Reinforced . | . Stealth | -11 --------- Run | Scr Distress Signals . | . Communications Jammed . | . Distress Signals . | . Times Spotted 22 | 22 Peak Tracking Total 22 | 22 Tactical Retreats . | . Traps | -11 ------- Run | Scr Traps Triggered . | . Indirectly . | . Trap Hack Attempts . | . Triggered . | . Disarmed . | . Reprogrammed . | . Reused . | . Traps Extracted . | . Installed . | . Triggered . | . Machines | -11 ---------- Run | Scr Machines Disabled . | . Max in Single Turn . | . Machines Sabotaged . | . Garrisons Compromised . | . Overloaded Fab Kills . | . Fab Network Shutdowns . | . Hacking | -11 --------- Run | Scr Machines Accessed . | . Terminals . | . Fabricators . | . Repair Stations . | . Recycling Units . | . Scanalyzers . | . Garrison Access . | . Total Hacks . | . Successful . | . Failed . | . Catastrophic . | . Database Lockouts . | . Manual . | . Terminals . | . Fabricators . | . Repair Stations . | . Recycling Units . | . Scanalyzers . | . Garrison Access . | . Terminal Hacks . | . Fabricator Hacks . | . Repair Station Hacks . | . Recycling Unit Hacks . | . Scanalyzer . | . Garrison Access Hacks . | . Unauthorized Hacks . | . Terminals . | . Fabricators . | . Repair Stations . | . Recycling Units . | . Scanalyzers . | . Garrison Access . | . Data Cores Recovered . | . Used . | . Hacking Detections . | . Full Trace Events . | . Feedback Events . | . Feedback Blocked . | . Robot Schematics Acquired . | . Robots Built . | . Matter . | . Time . | . Total Robot Build Rating . | . Part Schematics Acquired . | . Parts Built . | . Matter . | . Time . | . Total Part Build Rating . | . Parts Repaired . | . Time . | . Parts Recycled . | . Recycled Matter . | . Retrieved Matter . | . Retrieved Components . | . Parts Scanalyzed . | . Part Schematics Acquired . | . Parts Damaged . | . Bothacking | -11 ------------ Run | Scr Used RIF Installer . | . Robots Hacked . | . Non-combat . | . Combat . | . Robot Hacks Applied . | . Relay Couplers Released . | . Robots Rewired . | . Allies Hacked . | . Hacks Repelled . | . Allies | -11 -------- Run | Scr Total Allies . | . Largest Group . | . Highest-Rated Group . | . Highest-Rated Ally . | . Total Orders . | . Ally Attacks . | . Total Damage . | . Kills . | . Allies Corrupted . | . Allies Melted . | . Intel | -11 ------- Run | Scr Robot Analysis Total . | . Derelict Logs Recovered . | . Drone Launches . | . Drone Recoveries . | . Exploration | -11 ------------- Run | Scr Turns Passed 4685 | 4685 Spaces Moved 1155 | 1155 Core 11 | 11 Treads 1129 | 1129 Legs 15 | 15 Wheels . | . Hover . | . Flight . | . Fastest Speed 50 | 50 Average Speed 158 | 158 Slowest Speed 160 | 160 Overloaded Moves . | . Propulsion Burnouts . | . Robots Hopped . | . Cave-ins Triggered . | . Exploration Rate (%) 117 | 117 Regions Visited . Branch Regions . Pre-discovered Areas . | . Known Exits Taken . | . Unknown Exits Taken . | . Scrap Searched . | . Spaces Dug . | . Terrain Destroyed . | . Melee . | . Projectile . | . AOE . | . Terrain Rammed . | . Walls Destroyed . | . Machines Disabled . | . Actions | -11 --------- Run | Scr Total 4005 | 4005 Wait 2829 | 2829 Move 1155 | 1155 Hop . | . Pick Up 9 | 9 Fast Attach 4 | 4 Attach 4 | 4 Detach . | . Swap 1 | 1 Drop 1 | 1 Fire 2 | 2 Melee . | . Ram . | . Kick . | . Crush . | . Escape Stasis . | . Rewire . | . Trap . | . Miscellaneous . | . Route ------- -11/Scrapyard (discovered 1 exit: [*Mat]) History --------- Turn | Location | Event 11 | -11/Scrapyard | Discovered new exit (range 15) 4653 | -11/Scrapyard | Assembled infested the area 4682 | -11/Scrapyard | Core integrity fell below 50% 4686 | -11/Scrapyard | Core integrity fell below 20% 4686 | -11/Scrapyard | Destroyed by as-03414 with Assembled Heavy Rifle Last Messages --------------- 04671_ D-53 Grenadier unfolds itself. 04675_ as-69099 destroyed. 04675_ as-84270 destroyed. 04675_ as-48588 destroyed. 04675_ as-38056 destroyed. 04675_ as-51146 destroyed. 04675_ as-88781 destroyed. 04676_ as-82561 destroyed. 04678_ as-85488 destroyed. 04678_ as-77113 destroyed. 04678_ as-30655 destroyed. 04678_ as-41029 destroyed. 04678_ as-55576 destroyed. 04678_ Lgt. Assault Rifle destroyed. 04678_ Lgt. Treads destroyed. 04680_ Assault Rifle destroyed. 04680_ Lgt. Ion Engine destroyed. 04682_ Lgt. Treads destroyed. 04684_ Sml. Laser destroyed. 04685_ as-88950 destroyed. Map ----- +----------------------------------------------------+ | ?????????# #??????????????????????????????? | | ?????????# #???????????"??????????????????? | | ?????????# #??????????? ??????????????????? | | ?????????# #??????????? ?????????????????? | | ?????????# #??????????? ?????????????????? | | ?????????##### ####?????????? "?????????????????? | | ############# #########?????" ?????????????????? | | ## #????? ?????????????????? | | ########## ## #?????# ???###??##???????? | | #????????# ## #?????#=##? ? ???????? | | #????????# ## #?????#%|## ?????????? | | ########????# ## #?????#! # ???????????? | | #???## ## #?????# ??????????????? | | #???# ### ########## #????????????????? | | #???# #????????????????? | | #???# #????????????????? | | #???# ### ######### #????????????????? | | ########???###### #?????# a##########???????? | | ????????????????#% #???### a #???????? | | ############????# #???# a #???????? | | ## #????# ##### a #???????? | | ## #????# # a #???????? | | ## ###### a #???????? | | ## # ###### #???????? | | ## #???????? | | ## # @ #???????? | | ?# # ###### #???????? | | ?# ## ####### #########???????? | | ?############ # dd #???????????????? | | ??# # # # ##???????????????? | | ??# ##### #??????????????### | | ??# # # #???# #????????????### # | | ??# # ###########???# ############## | | ??########### #??#######????# | | ?????# # #??# ####?# | | ?????# # #??# #?# "############## | | ?????# # #??# #?#"%#?????######### # | | ?????# #??# #?# "#?????# # # | | ?????# # #??# #?# #?????# # # | | ?????# # #??# #?# #?????# # | | ?????######## #### #?# #?????# # # | | ######???# # #?# #?????# # # | | #???# # #?# #?????######### # | | #???# ### ######## ############### # | | ##### # # # # | | # # # # | | ### ######## # # | | ##### < # ?????# # # # # | | #???# # ???# # # # # | | #???########## ??# ######## # | +----------------------------------------------------+ Best States ------------- Heat Dissipation 25 Energy Generation 10 Energy Capacity 125 Matter Stores 225 Matter Capacity 300 Sight Range 16 Terrain Scan Density 10 Evasion (%) 40 Recoil Reduction 2 Item Schematics ----------------- None Robot Schematics ------------------ None Fabricated ------------ Nothing Alien Tech Used ----------------- None Achievements -------------- Curiosity Killed The Cat Hunted Challenges ------------ None Game ------ Seed RelayNodeTorch Manual? 0 Play Time 00:26:24 Cumulative 1.3 hours Start 2020.09.29 @ 18:00:13 End 2020.09.29 @ 18:15:48 Sessions 0 Manual Loads 0 Difficulty Rogue Special Mode None Game No. 4 Rogue 4 Adventurer 0 Explorer 0 Win Type - Total 0 Types 0/0/0/0/0/0/0/0/0 Lore% 1 Gallery% 6 Achievement% 7 Wizard Run 0 Options --------- ASCII 0 Keyboard 0 Movement Numpad Keybinds 0 Fullscreen 2 Font 18/X11Bold Map View 76x50 Tactical HUD 1 Map Filters NONE Filters NONE Steam 1 RUN: 89066bc6-2429-447b-86ce-37448af6de2e